bitfinex/quotes_SOLUSD_20240612
["timestamp","ask_amount","ask_price","bid_price","bid_amount"]
[1718151014241,2.4776,149.34,149.3,47.4782]
[1718151014966,2.4776,149.34,149.3,45.0]
[1718151016471,7.51,149.35,149.3,45.0]
[1718151016679,2.4777,149.33,149.3,45.0]
[1718151017173,2.4777,149.33,149.31,1.33935488]
[1718151017371,2.4777,149.33,149.31,46.33935488]
[1718151017858,2.4777,149.33,149.31,1.33935488]
[1718151021676,2.4777,149.33,149.3,45.0]
[1718151022573,2.4776,149.34,149.31,1.33930306]
[1718151022777,2.4776,149.34,149.31,8.84930306]
[1718151022956,2.4776,149.34,149.32,45.0]
[1718151024266,2.4774,149.35,149.32,45.0]
[1718151025566,2.4775,149.34,149.32,45.0]
[1718151025868,2.4774,149.35,149.32,45.0]
[1718151026780,2.4772,149.36,149.33,7.51]
[1718151026986,2.4772,149.36,149.34,45.0]
[1718151027155,2.4772,149.36,149.34,52.51]
[1718151028459,2.4772,149.36,149.34,45.0]
[1718151028680,2.4774,149.35,149.33,52.51]
[1718151029261,2.4774,149.35,149.33,45.0]
[1718151031790,2.4773,149.36,149.33,45.0]
[1718151034484,9.9871,149.37,149.33,47.4777]
[1718151035185,2.4772,149.36,149.33,45.0]
[1718151035384,2.4772,149.36,149.32,47.4778]
[1718151035760,2.4772,149.36,149.3,20.9522]
[1718151035761,2.4776,149.34,149.3,2.4781]
[1718151035974,9.9876,149.34,149.3,2.4781]
[1718151036579,9.9876,149.34,149.29,9.9883]
[1718151036789,9.9876,149.34,149.3,2.4782]
[1718151037486,9.9876,149.34,149.3,47.4782]
[1718151037681,9.9874,149.35,149.31,2.478]
[1718151037985,9.9874,149.35,149.31,47.478]
[1718151038385,9.9874,149.35,149.31,2.478]
[1718151038691,2.4775,149.34,149.3,47.4781]
[1718151039065,2.4777,149.33,149.3,45.0]
[1718151039594,9.9876,149.34,149.3,45.0]
[1718151040067,9.9876,149.34,149.3,47.4782]
[1718151040693,9.9879,149.32,149.3,45.0]
[1718151041194,7.51,149.32,149.3,45.0]
[1718151043605,7.51,149.32,149.3,47.4782]
[1718151044511,7.51,149.33,149.3,47.4782]
[1718151046773,2.4776,149.34,149.3,2.4782]
[1718151046981,9.9876,149.34,149.3,2.4782]
[1718151047473,7.51,149.34,149.3,2.4782]
[1718151047696,2.4772,149.37,149.32,2.4778]
[1718151048001,9.9872,149.37,149.32,2.4778]
[1718151048577,2.4773,149.36,149.32,2.4778]
[1718151049499,7.51,149.37,149.32,2.4778]
[1718151049706,7.51,149.37,149.31,47.478]
[1718151049885,9.9873,149.36,149.31,9.988]
[1718151050081,2.4773,149.36,149.32,47.4778]
[1718151052585,5.22937559,149.39,149.32,72.6]
[1718151052791,2.477,149.38,149.34,2.4775]
[1718151053095,9.987,149.38,149.34,2.4775]
[1718151053608,9.987,149.38,149.33,9.9876]
[1718151053920,9.987,149.38,149.34,45.0]
[1718151054101,2.4771,149.37,149.34,45.0]
[1718151054305,2.4772,149.36,149.34,45.0]
[1718151054514,2.4774,149.35,149.33,45.0]
[1718151055009,2.4774,149.35,149.32,45.0]
[1718151058401,9.9873,149.36,149.32,47.4778]
[1718151058920,9.9873,149.36,149.32,2.4778]
[1718151059105,9.9873,149.36,149.33,45.0]
[1718151059306,9.9873,149.36,149.32,2.4778]
[1718151059810,9.9878,149.33,149.27,25.0574]
[1718151059985,9.9878,149.33,149.29,2.4783]
[1718151060311,9.9879,149.32,149.28,2.4785]
[1718151060487,7.51,149.32,149.28,2.4785]
[1718151061003,7.51,149.32,149.29,2.4783]
[1718151061422,6.2597,149.36,149.27,30.0147]
[1718151061612,9.9875,149.34,149.3,2.4781]
[1718151062819,9.9875,149.34,149.29,47.4783]
[1718151063185,9.9877,149.33,149.29,47.4783]
[1718151063384,9.9879,149.32,149.29,45.0]
[1718151063801,9.9879,149.32,149.28,45.0]
[1718151063992,9.9879,149.32,149.28,47.4785]
[1718151064607,7.51,149.32,149.28,47.4785]
[1718151067026,7.51,149.32,149.29,2.4783]
[1718151067321,9.9876,149.34,149.3,2.4781]
[1718151068112,17.7688,149.35,149.31,2.478]
[1718151068429,2.4769,149.38,149.33,2.4775]
[1718151068717,7.51,149.37,149.33,47.4775]
[1718151069230,2.4769,149.38,149.34,2.4775]
[1718151069430,9.9869,149.38,149.34,45.0]
[1718151069607,2.4769,149.38,149.34,47.4775]
[1718151069806,9.9869,149.38,149.33,47.4776]
[1718151070099,2.4771,149.37,149.33,47.4776]
[1718151071336,10.5302199,149.4,149.34,2.4775]
[1718151071615,7.73047184,149.4,149.36,7.51]
[1718151071924,7.73047184,149.4,149.37,45.0]
[1718151072298,15.24047184,149.4,149.37,45.0]
[1718151072609,2.4767,149.39,149.36,45.0]
[1718151074633,2.4766,149.4,149.36,47.4771]
[1718151074929,2.4766,149.4,149.36,2.4771]
[1718151075095,2.4766,149.4,149.37,45.0]
[1718151075304,2.4766,149.4,149.36,2.4771]
[1718151075715,2.4766,149.4,149.35,47.4773]
[1718151076320,2.477,149.38,149.35,45.0]
[1718151076498,2.477,149.37,149.35,45.0]
[1718151076695,7.51,149.39,149.35,45.0]
[1718151076901,2.4769,149.38,149.35,45.0]
[1718151077606,7.4289,149.42,149.35,54.9872]
[1718151077928,2.4766,149.4,149.35,54.9872]
[1718151080500,2.4767,149.39,149.35,54.9872]
[1718151081724,2.4767,149.39,149.35,52.51]
[1718151082737,2.4767,149.39,149.36,1.33712656]
[1718151082943,15.1782,149.43,149.37,9.9869]
[1718151083105,10.43315418,149.44,149.38,53.84859281]
[1718151083304,2.4763,149.42,149.38,8.84859281]
[1718151083506,2.4763,149.42,149.39,45.0]
[1718151084228,2.4764,149.41,149.39,45.0]
[1718151084415,2.4764,149.41,149.38,45.0]
[1718151085722,2.4764,149.41,149.37,54.987]
[1718151088225,2.4763,149.42,149.37,54.987]
[1718151088526,2.4763,149.42,149.38,2.4768]
[1718151090638,9.9863,149.42,149.38,2.4768]
[1718151091121,4.952,149.44,149.37,52.51]
[1718151091122,7.51,149.41,149.37,45.0]
[1718151091443,2.4766,149.4,149.37,45.0]
[1718151092420,9.9864,149.41,149.37,47.477]
[1718151093536,2.4765,149.4,149.37,45.0]
[1718151093833,7.51,149.39,149.37,45.0]
[1718151099418,9.9865,149.4,149.37,45.0]
[1718151101942,2.4765,149.4,149.37,45.0]
[1718151102144,9.9865,149.4,149.37,45.0]
[1718151107256,9.9865,149.4,149.37,47.477]
[1718151107551,9.9865,149.4,149.37,45.0]
[1718151109757,2.4765,149.4,149.37,45.0]
[1718151109955,9.9865,149.4,149.37,45.0]
[1718151110258,2.4767,149.39,149.37,45.0]
[1718151110438,9.9867,149.39,149.35,2.4773]
[1718151110640,9.9867,149.39,149.35,47.4773]
[1718151110864,7.51,149.39,149.36,2.4772]
[1718151111154,7.51,149.39,149.36,47.4772]
[1718151111558,7.51,149.39,149.36,2.4772]
[1718151112458,9.9867,149.39,149.36,2.4772]
[1718151112639,7.51,149.39,149.36,2.4772]
[1718151114166,9.9867,149.39,149.36,2.4772]
[1718151114462,2.4767,149.39,149.36,2.4772]
[1718151118748,2.4767,149.39,149.35,47.4773]
[1718151120551,9.9866,149.4,149.36,2.4771]
[1718151123466,2.4767,149.39,149.36,2.4771]
[1718151124758,2.4767,149.39,149.35,47.4773]
[1718151124958,107.51,149.37,149.3,12.3815]
[1718151125271,9.988,149.31,149.3,12.3815]
[1718151125765,2.4782,149.3,149.26,2.4788]
[1718151125944,7.51,149.3,149.26,2.4788]
[1718151126644,7.51,149.3,149.25,23.4237]
[1718151126645,7.51,149.31,149.27,2.4787]
[1718151127971,7.51,149.3,149.27,47.4787]
[1718151128159,7.51,149.3,149.27,2.4787]
[1718151128364,7.51,149.3,149.26,47.4788]
[1718151128742,2.478,149.31,149.26,67.5788]
[1718151128945,9.9879,149.32,149.27,2.4787]
[1718151129455,7.51,149.31,149.27,2.4787]
[1718151130154,9.988,149.31,149.26,75.0888]
[1718151130654,2.478,149.31,149.26,75.0888]
[1718151130853,7.51,149.31,149.27,2.4787]
[1718151131675,9.9881,149.31,149.26,75.0888]
[1718151133987,2.4782,149.3,149.26,75.0888]
[1718151134279,9.9882,149.3,149.26,67.5788]
[1718151135160,9.9882,149.3,149.26,65.1]
[1718151138280,2.4783,149.29,149.26,65.1]
[1718151140067,9.9883,149.29,149.26,65.1]
[1718151141283,2.4783,149.29,149.26,65.1]
[1718151141487,9.9883,149.29,149.26,65.1]
[1718151143473,9.9883,149.29,149.26,45.0]
[1718151145282,7.51,149.29,149.26,45.0]
[1718151145499,9.9882,149.3,149.26,45.0]
[1718151145665,9.9882,149.3,149.26,47.4788]
[1718151148195,9.9882,149.3,149.26,45.0]
[1718151148489,2.4784,149.29,149.26,45.0]
[1718151149281,9.9884,149.29,149.26,45.0]
[1718151151598,7.51,149.29,149.26,45.0]
[1718151152402,2.4783,149.3,149.26,45.0]
[1718151152578,9.9883,149.3,149.26,45.0]
[1718151153694,2.4784,149.29,149.26,45.0]
[1718151155798,9.9884,149.29,149.26,45.0]
[1718151157786,2.4785,149.28,149.26,45.0]
[1718151158482,9.9884,149.29,149.26,45.0]
[1718151159502,2.4782,149.3,149.26,74.0352]
[1718151162282,2.4782,149.3,149.26,71.5565]
[1718151162478,2.4782,149.3,149.27,1.33957111]
[1718151164421,2.4784,149.29,149.27,1.33957111]
[1718151165987,2.478,149.32,149.29,6.4972]
[1718151166193,2.4779,149.32,149.3,46.33930193]
[1718151167306,2.478,149.31,149.3,46.33930193]
[1718151168004,2.478,149.31,149.3,45.0]
[1718151168795,2.478,149.31,149.29,45.0]
[1718151171489,7.51,149.34,149.29,71.7058]
[1718151171802,2.4778,149.33,149.29,81.6941]
[1718151172595,2.4779,149.32,149.29,81.6941]
[1718151175197,2.4779,149.32,149.29,71.7058]
[1718151180934,2.4779,149.32,149.29,67.5783]
[1718151181312,152.6186,149.38,149.29,72.61]
[1718151181504,2.4778,149.33,149.29,79.2217]
[1718151181705,22.2952,149.36,149.3,2.4782]
[1718151181905,7.51,149.35,149.3,2.4782]
[1718151182199,2.4777,149.33,149.29,81.7]
[1718151183301,2.4779,149.32,149.29,71.7117]
[1718151183501,2.478,149.31,149.29,65.1]
[1718151184406,2.4779,149.32,149.29,65.1]
[1718151187712,9.9877,149.33,149.29,67.5782]
[1718151190442,7.51,149.33,149.3,2.4782]
[1718151192047,2.4776,149.34,149.3,2.4782]
[1718151192248,7.51,149.33,149.3,2.4782]
[1718151192544,9.9876,149.34,149.3,2.4782]
[1718151194246,10.24569032,149.38,149.32,26.1521]
[1718151194538,20.23259032,149.38,149.34,2.4775]
[1718151194724,2.477,149.37,149.33,47.4776]
[1718151195613,2.4772,149.36,149.33,47.4776]
[1718151196581,2.4774,149.35,149.33,45.0]
[1718151197337,2.4774,149.35,149.32,45.0]
[1718151200241,2.4774,149.35,149.32,47.4778]
[1718151200446,9.9873,149.36,149.32,47.4778]
[1718151201251,7.51,149.35,149.32,47.4778]
[1718151202547,9.9874,149.35,149.32,47.4778]
[1718151204082,7.51,149.35,149.32,47.4778]
[1718151204655,9.9874,149.35,149.32,47.4778]
[1718151204858,7.51,149.35,149.32,47.4778]
[1718151206657,2.4773,149.36,149.33,2.4777]
[1718151206846,7.51,149.36,149.33,2.4777]
[1718151208944,9.9872,149.36,149.32,47.4778]
[1718151209454,7.51,149.36,149.33,2.4776]
[1718151209659,9.9871,149.37,149.33,29.0129]
[1718151209962,9.9871,149.37,149.34,45.0]
[1718151210341,2.4772,149.36,149.34,45.0]
[1718151211742,9.9872,149.36,149.34,45.0]
[1718151212246,4.9536,149.39,149.34,45.0]
[1718151212556,9.9868,149.39,149.35,2.4773]
[1718151212757,2.4768,149.39,149.36,2.4772]
[1718151212962,2.4765,149.41,149.37,2.477]
[1718151213261,2.4765,149.41,149.37,47.477]
[1718151213262,2.4765,149.4,149.37,47.477]
[1718151213553,2.4765,149.4,149.38,0.36322799]
[1718151213861,2.4763,149.42,149.38,2.84012799]
[1718151214042,9.9863,149.42,149.38,47.84012799]
[1718151214238,2.4764,149.41,149.38,45.0]
[1718151215364,2.4765,149.4,149.38,45.0]
[1718151215973,9.9864,149.41,149.38,45.0]
[1718151219352,2.4762,149.42,149.38,47.4768]
[1718151220366,2.4763,149.42,149.38,47.4768]
[1718151221377,2.4761,149.43,149.39,2.4766]
[1718151221556,2.4759,149.44,149.4,2.4765]
[1718151221756,9.9859,149.44,149.4,47.4765]
[1718151222255,9.9859,149.44,149.4,2.4765]
[1718151222478,2.476,149.43,149.4,2.4765]
[1718151223493,2.476,149.43,149.39,54.9867]
[1718151224767,2.4762,149.42,149.39,45.0]
[1718151225874,9.9862,149.42,149.39,45.0]
[1718151226609,2.4762,149.42,149.39,45.0]
[1718151232491,2.4762,149.42,149.39,47.4767]
[1718151232785,9.9861,149.43,149.39,47.4767]
[1718151232992,9.9861,149.43,149.4,45.0]
[1718151233286,2.4777,149.34,149.29,2.4783]
[1718151233487,9.9879,149.32,149.28,6.3013]
[1718151234189,7.51,149.32,149.29,22.5783]
[1718151234598,7.51,149.33,149.29,22.5783]
[1718151234772,7.51,149.33,149.3,45.0]
[1718151235794,7.51,149.33,149.31,1.33932617]
[1718151236890,16.4847,149.39,149.3,45.0]
[1718151236891,109.9054,149.42,149.32,26.4349]
[1718151237080,6.4222,149.43,149.35,33.9449]
[1718151237390,2.4764,149.41,149.36,67.5771]
[1718151237575,9.9864,149.41,149.37,2.477]
[1718151237979,9.9864,149.41,149.36,67.5771]
[1718151238177,9.9864,149.41,149.36,73.912]
[1718151238896,4.9518,149.44,149.36,73.912]
[1718151238897,9.9865,149.4,149.36,73.912]
[1718151240177,9.9865,149.4,149.36,71.4349]
[1718151241200,9.9865,149.4,149.36,73.9121]
[1718151244105,7.51,149.4,149.36,73.9121]
[1718151245286,9.9865,149.4,149.36,73.9121]
[1718151245586,7.51,149.4,149.36,73.9121]
[1718151245790,7.51,149.4,149.37,9.0908]
[1718151246006,7.51,149.4,149.38,45.0]
[1718151247985,9.9864,149.41,149.38,45.0]
[1718151249088,2.4764,149.41,149.38,45.0]
[1718151250203,2.4763,149.42,149.38,75.0868]
[1718151250409,2.4761,149.43,149.39,9.08]
[1718151250725,2.4762,149.42,149.4,46.33661425]
[1718151251023,2.4762,149.42,149.4,45.0]
[1718151254197,5.42580525,149.48,149.4,71.4548]
[1718151254198,22.2788,149.47,149.4,71.4548]
[1718151254390,2.4758,149.45,149.42,6.3548]
[1718151254713,2.4758,149.45,149.43,45.0]
[1718151257336,2.4758,149.45,149.43,65.1]
[1718151257625,9.9957178,149.49,149.43,75.0859]
[1718151257808,2.4754,149.47,149.44,26.3638]
[1718151258133,2.4754,149.47,149.45,45.0]
[1718151264395,2.4752,149.48,149.45,71.3356]
[1718151264595,12.5554178,149.49,149.45,71.3356]
[1718151264596,5.0454178,149.49,149.46,26.4639]
[1718151264818,2.475,149.5,149.47,51.3639]
[1718151265029,2.475,149.5,149.48,6.3639]
[1718151265333,4.949,149.53,149.5,26.4639]
[1718151265334,2.4744,149.53,149.5,26.4639]
[1718151265541,2.4745,149.52,149.51,45.0]
[1718151266334,9.9845,149.52,149.51,45.0]
[1718151266708,2.4745,149.52,149.51,45.0]
[1718151267234,9.9845,149.52,149.51,45.0]
[1718151268713,7.51,149.52,149.48,15.42]
[1718151268915,2.475,149.49,149.46,26.5647]
[1718151269121,9.985,149.49,149.46,26.5647]
[1718151269414,2.4752,149.48,149.46,6.4647]
[1718151269722,2.4752,149.48,149.44,32.9636]
[1718151269919,2.4752,149.48,149.45,20.1]
[1718151270136,2.4751,149.49,149.45,22.5757]
[1718151270306,2.4753,149.48,149.45,20.1]
[1718151271731,2.4753,149.48,149.46,45.0]
[1718151273049,39.9389,149.52,149.46,45.0]
[1718151273243,7.51,149.49,149.46,47.4755]
[1718151273545,9.985,149.49,149.46,47.4755]
[1718151273711,9.985,149.49,149.46,45.0]
[1718151274243,7.51,149.48,149.46,45.0]
[1718151274423,9.985,149.49,149.46,45.0]
[1718151275444,7.4231,149.54,149.47,6.5339]
[1718151275622,9.9846,149.52,149.48,67.5752]
[1718151275821,2.4746,149.52,149.48,74.1091]
[1718151276124,2.4744,149.53,149.49,28.8721]
[1718151276312,2.4744,149.53,149.5,65.1]
[1718151277545,2.4746,149.52,149.5,65.1]
[1718151279620,2.4745,149.53,149.5,71.7379]
[1718151280028,9.9845,149.53,149.5,71.7379]
[1718151280233,2.4746,149.52,149.5,71.7379]
[1718151281633,2.4744,149.53,149.5,71.7379]
[1718151282029,2.4746,149.52,149.5,71.7379]
[1718151285153,2.4745,149.53,149.5,71.7379]
[1718151285326,2.4745,149.53,149.5,74.2127]
[1718151285653,2.4742,149.55,149.51,2.4746]
[1718151285833,2.4742,149.54,149.5,81.7227]
[1718151286232,2.4742,149.54,149.51,26.911]
[1718151286457,2.4742,149.54,149.52,45.0]
[1718151289132,2.4741,149.55,149.52,65.1]
[1718151289332,9.9841,149.55,149.52,65.1]
[1718151289564,2.4741,149.55,149.52,74.2155]
[1718151290673,9.9839,149.56,149.52,74.2155]
[1718151291276,2.4739,149.56,149.52,81.7255]
[1718151291953,9.9839,149.56,149.52,74.2155]
[1718151292460,7.51,149.56,149.52,65.1]
[1718151292666,2.474,149.56,149.52,75.0845]
[1718151292847,2.474,149.56,149.52,67.5745]
[1718151292848,9.984,149.56,149.52,67.5745]
[1718151293055,2.4741,149.55,149.52,65.1]
[1718151293753,2.4739,149.56,149.53,0.17]
[1718151294050,2.4741,149.55,149.52,78.8091]
[1718151294475,7.51,149.57,149.53,0.17]
[1718151294659,17.38274484,149.6,149.54,27.61]
[1718151294861,2.4735,149.59,149.55,75.084]
[1718151295357,2.4736,149.58,149.55,72.61]
[1718151296659,4.9462,149.61,149.56,0.17]
[1718151296976,2.4735,149.59,149.56,0.17]
[1718151297677,2.4735,149.58,149.56,0.17]
[1718151298765,2.4735,149.59,149.56,0.17]
[1718151299657,2.4735,149.59,149.57,20.1]
[1718151299858,9.9831,149.61,149.58,45.0]
[1718151300167,2.4731,149.61,149.58,45.0]
[1718151300689,2.4731,149.61,149.58,65.1]
[1718151300983,9.9828,149.63,149.59,29.1974]
[1718151301277,3.311198,149.64,149.6,67.5732]
[1718151301686,3.311198,149.64,149.6,72.61]
[1718151301687,0.838598,149.64,149.6,72.61]
[1718151301856,0.838598,149.64,149.63,2.4727]
[1718151302057,0.838598,149.64,149.63,46.33635654]
[1718151302794,3.311198,149.64,149.63,45.0]
[1718151303356,3.311198,149.64,149.58,2.4734]
[1718151303357,7.4184,149.63,149.56,6.7941]
[1718151303557,9.9832,149.61,149.56,9.2679]
[1718151303761,9.9832,149.61,149.57,20.1]
[1718151303985,2.4732,149.6,149.57,20.1]
[1718151304484,12.4573,149.58,149.53,6.6241]
[1718151304667,2.4738,149.57,149.53,16.6085]
[1718151304874,2.4735,149.59,149.55,22.574]
[1718151305078,9.9835,149.59,149.55,22.574]
[1718151305267,7.51,149.59,149.55,22.574]
[1718151305470,7.51,149.59,149.56,2.4739]
[1718151305667,7.51,149.59,149.55,22.574]
[1718151306282,2.4736,149.58,149.56,45.0]
[1718151307375,2.4742,149.55,149.53,20.1]
[1718151307567,9.9843,149.54,149.51,16.2107]
[1718151307767,9.9843,149.54,149.48,6.4754]
[1718151307768,2.4743,149.54,149.49,8.9504]
[1718151308075,9.9844,149.53,149.49,8.9504]
[1718151308484,9.9844,149.53,149.5,20.1]
[1718151308485,7.51,149.53,149.5,20.1]
[1718151308665,7.51,149.53,149.49,6.4754]
[1718151308666,7.51,149.52,149.49,2.475]
[1718151309682,7.51,149.5,149.45,6.4754]
[1718151309983,7.51,149.49,149.46,2.4754]
[1718151310389,7.51,149.49,149.46,22.5754]
[1718151310778,7.51,149.49,149.46,2.4754]
[1718151311102,7.51,149.49,149.46,47.4754]
[1718151311769,7.51,149.49,149.47,2.4754]
[1718151312097,7.51,149.49,149.47,45.0]
[1718151312284,7.51,149.49,149.47,47.4754]
[1718151312461,7.51,149.49,149.47,67.5754]
[1718151312673,7.51,149.5,149.48,2.4752]
[1718151312868,2.4743,149.54,149.48,65.1]
[1718151313074,16.1469,149.56,149.49,20.1]
[1718151313277,7.51,149.53,149.5,47.4748]
[1718151313669,9.9844,149.53,149.5,45.0]
[1718151314583,2.4741,149.55,149.5,65.1]
[1718151314803,9.9841,149.55,149.51,22.5747]
[1718151314976,2.474,149.56,149.52,47.4745]
[1718151315180,2.474,149.56,149.52,45.0]
[1718151315966,2.4741,149.55,149.52,45.0]
[1718151316589,2.4742,149.54,149.52,45.0]
[1718151316795,2.4741,149.55,149.52,65.1]
[1718151316974,2.4742,149.54,149.52,65.1]
[1718151317168,2.4742,149.54,149.52,45.0]
[1718151317669,2.4742,149.54,149.51,45.0]
[1718151318380,2.4742,149.54,149.51,65.1]
[1718151318695,2.4741,149.55,149.51,67.5747]
[1718151318994,2.4742,149.54,149.51,65.1]
[1718151319167,2.4741,149.55,149.51,67.5747]
[1718151319802,2.4742,149.54,149.51,65.1]
[1718151320097,2.4742,149.54,149.51,45.0]
[1718151321596,9.895,149.58,149.51,65.1]
[1718151321892,2.4741,149.55,149.51,67.5746]
[1718151322283,2.4741,149.55,149.51,47.4746]
[1718151322485,2.4742,149.54,149.51,45.0]
[1718151322690,2.4742,149.54,149.5,47.4748]
[1718151323196,2.4742,149.54,149.5,67.5748]
[1718151323799,2.4741,149.55,149.51,2.4746]
[1718151323992,2.4741,149.55,149.51,47.4746]
[1718151324214,12.3713,149.54,149.47,22.5752]
[1718151324391,22.54,149.55,149.48,20.1]
[1718151324581,22.54,149.55,149.45,13.9025]
[1718151324582,4.9479,149.56,149.49,21.43755638]
[1718151324896,2.4743,149.54,149.5,2.4748]
[1718151325199,2.4743,149.54,149.51,1.33748565]
[1718151325503,2.4745,149.52,149.51,1.33748565]
[1718151325677,2.4748,149.51,149.48,20.1]
[1718151325880,2.4749,149.5,149.48,20.1]
[1718151326092,2.4747,149.51,149.48,20.1]
[1718151326603,2.4747,149.51,149.47,9.1081]
[1718151326604,2.4747,149.51,149.47,9.1082]
[1718151326906,2.4747,149.51,149.47,29.2082]
[1718151327094,2.4747,149.51,149.48,45.0]
[1718151327283,2.475,149.5,149.48,45.0]
[1718151327601,2.475,149.5,149.46,2.4754]
[1718151327802,2.475,149.5,149.46,22.5754]
[1718151328508,2.475,149.5,149.46,22.5755]
[1718151328691,4.9493,149.52,149.46,22.5755]
[1718151328887,2.475,149.5,149.47,45.0]
[1718151329404,2.475,149.5,149.47,47.4754]
[1718151329595,2.4748,149.51,149.48,2.4752]
[1718151329802,2.4746,149.52,149.48,2.4752]
[1718151330488,2.4746,149.52,149.49,2.475]
[1718151331111,2.4745,149.53,149.49,2.475]
[1718151331314,2.4746,149.52,149.48,2.4751]
[1718151331618,2.4746,149.52,149.48,22.5751]
[1718151331792,2.4746,149.52,149.49,45.0]
[1718151333312,2.4747,149.51,149.49,45.0]
[1718151334501,2.4747,149.51,149.48,45.0]
[1718151336319,4.9486,149.54,149.48,47.4752]
[1718151336320,2.4746,149.52,149.48,47.4752]
[1718151336921,7.52,149.51,149.48,47.4752]
[1718151337893,7.52,149.51,149.48,45.0]
[1718151337894,9.9947,149.51,149.48,45.0]
[1718151338098,7.52,149.5,149.48,45.0]
[1718151340229,7.52,149.5,149.48,47.4752]
[1718151341013,2.4746,149.52,149.48,47.4752]
[1718151341221,7.52,149.51,149.48,47.4752]
[1718151341427,7.52,149.53,149.5,2.4748]
[1718151341798,12.3696,149.56,149.5,2.4748]
[1718151342098,7.52,149.52,149.49,47.4749]
[1718151342799,9.9945,149.52,149.49,47.4749]
[1718151343013,9.9945,149.52,149.5,45.0]
[1718151345532,9.9947,149.51,149.48,47.4751]
[1718151345903,7.52,149.51,149.48,47.4751]
[1718151347534,7.52,149.51,149.48,45.0]
[1718151347535,9.9948,149.51,149.48,45.0]
[1718151347720,7.52,149.5,149.48,45.0]
[1718151348538,9.9949,149.5,149.48,45.0]
[1718151348718,7.52,149.49,149.48,45.0]
[1718151348908,7.52,149.49,149.47,45.0]
[1718151349530,7.52,149.49,149.47,47.4753]
[1718151350432,7.52,149.5,149.47,47.4753]
[1718151353527,7.52,149.5,149.48,2.4752]
[1718151360340,7.52,149.5,149.47,47.4753]
[1718151361753,9.9949,149.5,149.47,47.4753]
[1718151361940,7.52,149.5,149.47,47.4753]
[1718151362616,7.52,149.48,149.45,2.4756]
[1718151362816,7.52,149.47,149.45,2.4756]
[1718151363333,7.52,149.47,149.46,2.4755]
[1718151363836,7.52,149.47,149.45,2.4756]
[1718151364039,7.52,149.47,149.45,47.4756]
[1718151364930,2.4756,149.46,149.42,2.4761]
[1718151365243,7.52,149.44,149.42,22.5561]
[1718151365647,7.52,149.45,149.43,2.476]
[1718151366448,7.52,149.46,149.43,2.476]
[1718151366654,7.52,149.46,149.43,47.476]
[1718151367440,9.9955,149.46,149.43,2.476]
[1718151367748,9.9955,149.46,149.42,67.5561]
[1718151367930,7.52,149.45,149.43,2.476]
[1718151368457,7.52,149.45,149.42,67.5561]
[1718151368631,9.9955,149.46,149.43,1.33821091]
[1718151369549,2.4752,149.48,149.45,2.4757]
[1718151369721,9.9952,149.48,149.44,47.4758]